fUST/lending_fUST_20250627
["ID","MTS","AMOUNT","RATE_DAILY","PERIOD"]
[368038627,1751002247911,-415.32561581,0.00019744,2]
[368038628,1751002247920,-500.0,0.00019744,2]
[368038629,1751002247931,-619.39198839,0.000199,2]
[368038630,1751002247941,-151.0,0.000199,2]
[368038631,1751002247950,-8370.50534344,0.000199,2]
[368038632,1751002247963,-292.69191987,0.00019936,2]
[368038633,1751002247972,-389063.7434,0.00019937,2]
[368038634,1751002247982,-6537.875941,0.00019938,2]
[368038635,1751002247991,-550.25,0.0002,2]
[368038636,1751002248001,-390.75,0.0002,2]
[368038637,1751002248010,-460.0,0.0002,2]
[368038638,1751002248019,-220.5455124,0.0002,2]
[368038639,1751002248030,-474.24,0.0002,2]
[368038640,1751002248039,-271.07575465,0.0002,2]
[368038641,1751002248049,-286.43441843,0.0002,2]
[368038642,1751002248058,-460.0,0.0002,2]
[368038643,1751002248068,-523.75053481,0.0002,2]
[368038644,1751002248077,-460.0,0.0002,2]
[368038645,1751002248087,-580.0,0.0002,2]
[368038646,1751002248096,-460.0,0.0002,2]
[368038647,1751002248106,-591.36,0.0002,2]
[368038648,1751002248115,-580.0,0.0002,2]
[368038649,1751002248126,-460.0,0.0002,2]
[368038650,1751002248136,-460.0,0.0002,2]
[368038651,1751002248146,-580.0,0.0002,2]
[368038652,1751002248155,-460.0,0.0002,2]
[368038653,1751002248165,-460.0,0.0002,2]
[368038654,1751002248175,-460.0,0.0002,2]
[368038655,1751002248184,-444.84,0.0002,2]
[368038656,1751002248194,-218.13,0.0002,2]
[368038657,1751002248204,-298.95,0.0002,2]
[368038658,1751002248213,-863.04,0.0002,2]
[368038659,1751002248223,-500.0,0.0002,2]
[368038660,1751002248233,-460.0,0.0002,2]
[368038661,1751002248243,-460.0,0.0002,2]
[368038662,1751002248252,-167.74906325,0.0002,2]
[368038663,1751002248262,-460.0,0.0002,2]
[368038664,1751002248272,-1007.46,0.0002,2]
[368038665,1751002248281,-460.0,0.0002,2]
[368038666,1751002248291,-580.0,0.0002,2]
[368038667,1751002248300,-460.0,0.0002,2]
[368038668,1751002248310,-460.0,0.0002,2]
[368038669,1751002248319,-460.0,0.0002,2]
[368038670,1751002248328,-460.0,0.0002,2]
[368038671,1751002248338,-460.0,0.0002,2]
[368038672,1751002248347,-460.0,0.0002,2]
[368038673,1751002248357,-629.65,0.0002,2]
[368038674,1751002248366,-460.0,0.0002,2]
[368038675,1751002248375,-460.0,0.0002,2]
[368038676,1751002248384,-204.9,0.0002,2]
[368038677,1751002248394,-460.0,0.0002,2]
[368038678,1751002248403,-460.0,0.0002,2]
[368038679,1751002248412,-460.0,0.0002,2]
[368038680,1751002248422,-460.0,0.0002,2]
[368038681,1751002248430,-460.0,0.0002,2]
[368038682,1751002248440,-500.0,0.0002,2]
[368038683,1751002248449,-460.0,0.0002,2]
[368038684,1751002248458,-580.0,0.0002,2]
[368038685,1751002248467,-460.0,0.0002,2]
[368038686,1751002248477,-460.0,0.0002,2]
[368038687,1751002248486,-252.27,0.0002,2]
[368038688,1751002248496,-460.0,0.0002,2]
[368038689,1751002248505,-460.0,0.0002,2]
[368038690,1751002248515,-460.0,0.0002,2]
[368038691,1751002248524,-500.0,0.0002,2]
[368038692,1751002248533,-460.0,0.0002,2]
[368038693,1751002248542,-460.0,0.0002,2]
[368038694,1751002248552,-460.0,0.0002,2]
[368038695,1751002248562,-460.0,0.0002,2]
[368038696,1751002248571,-701.78,0.0002,2]
[368038697,1751002248580,-460.0,0.0002,2]
[368038698,1751002248590,-397.92,0.0002,2]
[368038699,1751002248599,-460.0,0.0002,2]
[368038700,1751002248609,-460.0,0.0002,2]
[368038701,1751002248619,-566.46,0.0002,2]
[368038702,1751002248628,-460.0,0.0002,2]
[368038703,1751002248638,-460.0,0.0002,2]
[368038704,1751002248647,-1087.18,0.0002,2]
[368038705,1751002248657,-460.0,0.0002,2]
[368038706,1751002248666,-460.0,0.0002,2]
[368038707,1751002248676,-460.0,0.0002,2]
[368038708,1751002248685,-460.0,0.0002,2]
[368038709,1751002248694,-460.0,0.0002,2]
[368038710,1751002248704,-562.5,0.0002,2]
[368038711,1751002248714,-580.0,0.0002,2]
[368038712,1751002248724,-1089.59,0.0002,2]
[368038713,1751002248734,-2802.28,0.0002,2]
[368038714,1751002248743,-460.0,0.0002,2]
[368038715,1751002248863,-460.0,0.0002,2]
[368038716,1751002248873,-544.83,0.0002,2]
[368038717,1751002248883,-1912.87,0.0002,2]
[368038718,1751002248893,-460.0,0.0002,2]
[368038719,1751002248903,-649.93,0.0002,2]
[368038720,1751002248912,-475.68,0.0002,2]
[368038721,1751002248922,-460.0,0.0002,2]
[368038722,1751002248931,-460.0,0.0002,2]
[368038723,1751002248941,-460.0,0.0002,2]
[368038724,1751002248950,-460.0,0.0002,2]
[368038725,1751002248962,-460.0,0.0002,2]
[368038726,1751002248973,-1286.96,0.0002,2]
[368038727,1751002248982,-681.06,0.0002,2]
[368038728,1751002248992,-460.0,0.0002,2]
[368038729,1751002249003,-875.84,0.0002,2]
[368038730,1751002249012,-460.0,0.0002,2]
[368038731,1751002249022,-5787.19,0.0002,2]
[368038732,1751002249032,-2340.09,0.0002,2]
[368038733,1751002249042,-1243.39,0.0002,2]
[368038734,1751002249051,-678.37,0.0002,2]
[368038735,1751002249060,-460.0,0.0002,2]
[368038736,1751002249070,-2750.13,0.0002,2]
[368038737,1751002249079,-460.0,0.0002,2]
[368038738,1751002249088,-460.0,0.0002,2]
[368038739,1751002249098,-480.43,0.0002,2]
[368038740,1751002249107,-460.0,0.0002,2]
[368038741,1751002249116,-596.35,0.0002,2]
[368038742,1751002249125,-522.52,0.0002,2]
[368038743,1751002249135,-580.0,0.0002,2]
[368038744,1751002249145,-871.05,0.0002,2]
[368038745,1751002249154,-460.0,0.0002,2]
[368038746,1751002249163,-183.63,0.0002,2]
[368038747,1751002249173,-2533.04,0.0002,2]
[368038748,1751002249182,-559.24,0.0002,2]
[368038749,1751002249191,-1363.56,0.0002,2]
[368038750,1751002249200,-391.08,0.0002,2]
[368038751,1751002249210,-547.18,0.0002,2]
[368038752,1751002249219,-600.75,0.0002,2]
[368038753,1751002249229,-1668.16,0.0002,2]
[368038754,1751002249238,-460.0,0.0002,2]
[368038755,1751002249247,-1146.19,0.0002,2]
[368038756,1751002249257,-702.62,0.0002,2]
[368038757,1751002249266,-926.59,0.0002,2]
[368038758,1751002249275,-716.79,0.0002,2]
[368038759,1751002249284,-150.17311486,0.0002,7]
[368038760,1751002249293,-981.69,0.0002,2]
[368038761,1751002249303,-524.17,0.0002,2]
[368038762,1751002249312,-480.17,0.0002,2]
[368038763,1751002249321,-460.0,0.0002,2]
[368038764,1751002249331,-3089.8856831,0.0002,2]
[368038765,1751002249340,-226.11,0.0002,2]
[368038766,1751002249349,-7486.99,0.0002,2]
[368038767,1751002249359,-540.0,0.0002,2]
[368038768,1751002249368,-775.79,0.0002,2]
[368038769,1751002249378,-3201.74,0.0002,2]
[368038770,1751002249387,-460.0,0.0002,2]
[368038771,1751002249396,-460.0,0.0002,2]
[368038772,1751002249406,-517.34,0.0002,2]
[368038773,1751002249416,-460.0,0.0002,2]
[368038774,1751002249425,-580.0,0.0002,2]
[368038775,1751002249435,-608.58,0.0002,2]
[368038776,1751002249444,-460.0,0.0002,2]
[368038777,1751002249455,-239.01,0.0002,2]
[368038778,1751002249464,-1011.71,0.0002,2]
[368038779,1751002249473,-846.4,0.0002,2]
[368038780,1751002249483,-528.27,0.0002,2]
[368038781,1751002249492,-339.58,0.0002,2]
[368038782,1751002249502,-460.0,0.0002,2]
[368038783,1751002249511,-460.0,0.0002,2]
[368038784,1751002249520,-460.0,0.0002,2]
[368038785,1751002249530,-3240.37,0.0002,2]
[368038786,1751002249539,-2430.81,0.0002,2]
[368038787,1751002249549,-1648.11,0.0002,2]
[368038788,1751002249558,-460.0,0.0002,2]
[368038789,1751002249568,-460.0,0.0002,2]
[368038790,1751002249578,-460.0,0.0002,2]
[368038791,1751002249587,-237.44,0.0002,2]
[368038792,1751002249596,-460.0,0.0002,2]
[368038793,1751002249606,-460.0,0.0002,2]
[368038794,1751002249617,-460.0,0.0002,2]
[368038795,1751002249627,-460.0,0.0002,2]
[368038796,1751002249636,-460.0,0.0002,2]
[368038797,1751002249646,-460.0,0.0002,2]
[368038798,1751002249655,-460.0,0.0002,2]
[368038799,1751002249664,-460.0,0.0002,2]
[368038800,1751002249674,-460.0,0.0002,2]
[368038801,1751002249683,-4291.0,0.0002,2]
[368038802,1751002249694,-1853.89,0.0002,2]
[368038803,1751002249704,-516.87,0.0002,2]
[368038804,1751002249713,-460.0,0.0002,2]
[368038805,1751002249723,-1791.13,0.0002,2]
[368038806,1751002249733,-473.9568773,0.0002,2]
[368038807,1751002249743,-871.79,0.0002,2]
[368038808,1751002249752,-460.0,0.0002,2]
[368038809,1751002249761,-917.52,0.0002,2]
[368038810,1751002249770,-1833.19,0.0002,2]
[368038811,1751002249780,-707.09,0.0002,2]
[368038812,1751002249790,-441.03,0.0002,2]
[368038813,1751002249799,-460.0,0.0002,2]
[368038814,1751002249808,-460.0,0.0002,2]
[368038815,1751002249818,-500.0,0.00020008,2]
[368038816,1751002249827,-500.0,0.00020008,2]
[368038817,1751002249836,-500.0,0.00020008,2]
[368038818,1751002249846,-500.0,0.00020008,2]
[368038819,1751002249855,-500.0,0.00020008,2]
[368038820,1751002249865,-500.0,0.00020008,2]
[368038821,1751002249873,-500.0,0.00020008,2]
[368038822,1751002249883,-500.0,0.00020008,2]
[368038823,1751002249892,-500.0,0.00020008,2]
[368038824,1751002249901,-298.5298057,0.00020008,2]
[368038825,1751002249911,-407.93129132,0.00020008,2]
[368038826,1751002249920,-500.0,0.00020008,2]
[368038827,1751002249929,-500.0,0.00020008,2]
[368038828,1751002249939,-214.91804724,0.00020009,2]
[368038829,1751002249947,-160.0,0.00020009,2]
[368038830,1751002249960,-160.0,0.00020009,2]
[368038831,1751002249969,-230.26210603,0.00020009,2]
[368038832,1751002249978,-213.75309343,0.00020009,2]
[368038833,1751002249987,-160.0,0.00020009,2]
[368038834,1751002249996,-12562.41216491,0.00020009,2]
[368038835,1751002250006,-847.04181546,0.00020009,2]
[368038836,1751002250015,-836.98798914,0.00020009,2]
[368038837,1751002250024,-160.0,0.00020009,2]
[368038838,1751002250034,-160.0,0.00020009,2]
[368038839,1751002250044,-160.0,0.00020009,2]
[368038840,1751002250053,-160.0,0.00020009,2]
[368038841,1751002250063,-160.0,0.00020009,2]
[368038842,1751002250073,-500.0,0.00020038,2]
[368038843,1751002250082,-500.0,0.00020038,2]
[368038844,1751002250091,-500.0,0.00020038,2]
[368038845,1751002250100,-5000.0,0.00020038,2]
[368038846,1751002250110,-200.0,0.00020038,2]
[368038847,1751002250119,-500.0,0.00020038,2]
[368038848,1751002250128,-500.0,0.00020038,2]
[368038849,1751002250137,-666.0,0.00020038,2]
[368038850,1751002250147,-200.0,0.00020038,2]
[368038851,1751002250156,-500.0,0.00020038,2]
[368038852,1751002250165,-500.0,0.00020038,2]
[368038853,1751002250174,-500.0,0.00020038,2]
[368038854,1751002250183,-500.0,0.00020038,2]
[368038855,1751002250193,-200.0,0.00020038,2]
[368038856,1751002250202,-500.0,0.00020038,2]
[368038857,1751002250211,-500.0,0.00020038,2]
[368038858,1751002250220,-500.0,0.00020038,2]
[368038859,1751002250229,-473.70408582,0.00020038,2]
[368038860,1751002250239,-500.0,0.00020038,2]
[368038861,1751002250248,-505.25517257,0.00020038,2]
[368038862,1751002250257,-500.0,0.00020038,2]
[368038863,1751002250266,-151.0,0.00020038,2]
[368038864,1751002250275,-151.0,0.00020038,2]
[368038865,1751002250284,-500.0,0.00020038,2]
[368038866,1751002250293,-151.0,0.00020038,2]
[368038867,1751002250303,-200.0,0.00020038,2]
[368038868,1751002250312,-500.0,0.00020038,2]
[368038869,1751002250322,-151.0,0.00020038,2]
[368038870,1751002250331,-200.0,0.00020038,2]
[368038871,1751002250340,-500.0,0.00020038,2]
[368038872,1751002250349,-151.0,0.00020038,2]
[368038873,1751002250358,-151.0,0.00020038,2]
[368038874,1751002250367,-200.0,0.00020038,2]
[368038875,1751002250376,-151.0,0.00020038,2]
[368038876,1751002250385,-500.0,0.00020038,2]
[368038877,1751002250396,-303.30964679,0.00020038,2]
[368038878,1751002250405,-199.98954325,0.00020038,2]
[368038879,1751002250414,-500.0,0.00020038,2]
[368038880,1751002250423,-151.0,0.00020038,2]
[368038881,1751002250432,-500.0,0.00020038,2]
[368038882,1751002250441,-151.0,0.00020038,2]
[368038883,1751002250450,-500.0,0.00020038,2]
[368038884,1751002250459,-151.0,0.00020038,2]
[368038885,1751002250469,-500.0,0.00020038,2]
[368038886,1751002250478,-151.0,0.00020038,2]
[368038887,1751002250486,-500.0,0.00020038,2]
[368038888,1751002250496,-25000.0,0.00020038,2]
[368038889,1751002250505,-500.0,0.00020038,2]
[368038890,1751002250514,-151.0,0.00020038,2]
[368038891,1751002250524,-151.0,0.00020038,2]
[368038892,1751002250533,-500.0,0.00020038,2]
[368038893,1751002250542,-151.0,0.00020038,2]
[368038894,1751002250552,-275.86690619,0.00020038,2]
[368038895,1751002250561,-19610.2874556,0.00020038,2]
[368038896,1751002250571,-500.0,0.00020038,2]
[368038897,1751002250580,-151.0,0.00020038,2]
[368038898,1751002250589,-151.0,0.00020038,2]
[368038899,1751002250598,-151.0,0.00020038,2]
[368038900,1751002250608,-151.0,0.00020038,2]
[368038901,1751002250617,-151.0,0.00020038,2]
[368038902,1751002250627,-207.4,0.00020038,2]
[368038903,1751002250635,-151.0,0.00020038,2]
[368038904,1751002250646,-151.0,0.00020038,2]
[368038905,1751002250656,-151.0,0.00020038,2]
[368038906,1751002250665,-151.0,0.00020038,2]
[368038907,1751002250674,-151.0,0.00020038,2]
[368038908,1751002250683,-690.642,0.00020093,2]
[368038909,1751002250692,-8370.50534325,0.00020107,2]
[368038910,1751002250701,-716.195754,0.00020148,2]
[368038911,1751002250711,-300.0,0.00020182,2]
[368038912,1751002250720,-151.0,0.000202,3]
[368038913,1751002250729,-742.6949969,0.00020203,2]
[368038914,1751002250738,-1000.0,0.00020223,2]
[368038915,1751002250748,-1000.0,0.00020223,2]
[368038916,1751002250759,-770.17471178,0.00020258,2]
[368038917,1751002250768,-460.0,0.00020273,2]
[368038918,1751002250778,-580.0,0.00020273,2]
[368038919,1751002250787,-385.52183075,0.00020273,2]
[368038920,1751002250799,-460.0,0.00020273,2]
[368038921,1751002250809,-460.0,0.00020273,2]
[368038922,1751002250818,-460.0,0.00020273,2]
[368038923,1751002250828,-460.0,0.00020273,2]
[368038924,1751002250837,-562.17832749,0.00020273,2]
[368038925,1751002250846,-460.0,0.00020273,2]
[368038926,1751002250855,-863.04,0.00020273,2]
[368038927,1751002250866,-460.0,0.00020273,2]
[368038928,1751002250875,-221.63,0.00020273,2]
[368038929,1751002250884,-460.0,0.00020273,2]
[368038930,1751002250895,-1007.46,0.00020273,2]
[368038931,1751002250904,-315.0,0.00020273,2]
[368038932,1751002250914,-460.0,0.00020273,2]
[368038933,1751002250923,-460.0,0.00020273,2]
[368038934,1751002250933,-460.0,0.00020273,2]
[368038935,1751002250942,-460.0,0.00020273,2]
[368038936,1751002250952,-460.0,0.00020273,2]
[368038937,1751002250966,-460.0,0.00020273,2]
[368038938,1751002250976,-629.65,0.00020273,2]
[368038939,1751002250985,-460.0,0.00020273,2]
[368038940,1751002250994,-460.0,0.00020273,2]
[368038941,1751002251004,-460.0,0.00020273,2]
[368038942,1751002251015,-460.0,0.00020273,2]
[368038943,1751002251027,-460.0,0.00020273,2]
[368038944,1751002251037,-468.86,0.00020273,2]
[368038945,1751002251048,-460.0,0.00020273,2]
[368038946,1751002251058,-460.0,0.00020273,2]
[368038947,1751002251067,-460.0,0.00020273,2]
[368038948,1751002251176,-460.0,0.00020273,2]
[368038949,1751002251185,-460.0,0.00020273,2]
[368038950,1751002251195,-460.0,0.00020273,2]
[368038951,1751002251204,-448.1,0.00020273,2]
[368038952,1751002251214,-359.18,0.00020273,2]
[368038953,1751002251223,-586.29,0.00020273,2]
[368038954,1751002251232,-460.0,0.00020273,2]
[368038955,1751002251242,-460.0,0.00020273,2]
[368038956,1751002251251,-701.78,0.00020273,2]
[368038957,1751002251260,-460.0,0.00020273,2]
[368038958,1751002251269,-460.0,0.00020273,2]
[368038959,1751002251278,-403.23,0.00020273,2]
[368038960,1751002251287,-460.0,0.00020273,2]
[368038961,1751002251296,-460.0,0.00020273,2]
[368038962,1751002251306,-1087.18,0.00020273,2]
[368038963,1751002251315,-460.0,0.00020273,2]
[368038964,1751002251324,-460.0,0.00020273,2]
[368038965,1751002251333,-460.0,0.00020273,2]
[368038966,1751002251342,-460.0,0.00020273,2]
[368038967,1751002251351,-460.0,0.00020273,2]
[368038968,1751002251360,-1089.59,0.00020273,2]
[368038969,1751002251369,-2802.28,0.00020273,2]
[368038970,1751002251379,-460.0,0.00020273,2]
[368038971,1751002251388,-460.0,0.00020273,2]
[368038972,1751002251398,-544.83,0.00020273,2]
[368038973,1751002251408,-1912.87,0.00020273,2]
[368038974,1751002251419,-460.0,0.00020273,2]
[368038975,1751002251429,-649.93,0.00020273,2]
[368038976,1751002251439,-475.68,0.00020273,2]
[368038977,1751002251449,-460.0,0.00020273,2]
[368038978,1751002251459,-460.0,0.00020273,2]
[368038979,1751002251469,-460.0,0.00020273,2]
[368038980,1751002251478,-460.0,0.00020273,2]
[368038981,1751002251488,-460.0,0.00020273,2]
[368038982,1751002251497,-1286.96,0.00020273,2]
[368038983,1751002251506,-681.06,0.00020273,2]
[368038984,1751002251516,-460.0,0.00020273,2]
[368038985,1751002251526,-875.84,0.00020273,2]
[368038986,1751002251535,-460.0,0.00020273,2]
[368038987,1751002251544,-5787.19,0.00020273,2]
[368038988,1751002251554,-2340.09,0.00020273,2]
[368038989,1751002251564,-1243.39,0.00020273,2]
[368038990,1751002251573,-678.37,0.00020273,2]
[368038991,1751002251582,-460.0,0.00020273,2]
[368038992,1751002251592,-2750.13,0.00020273,2]
[368038993,1751002251601,-460.0,0.00020273,2]
[368038994,1751002251610,-460.0,0.00020273,2]
[368038995,1751002251619,-480.43,0.00020273,2]
[368038996,1751002251629,-460.0,0.00020273,2]
[368038997,1751002251638,-596.35,0.00020273,2]
[368038998,1751002251648,-522.52,0.00020273,2]
[368038999,1751002251658,-871.05,0.00020273,2]
[368039000,1751002251667,-460.0,0.00020273,2]
[368039001,1751002251676,-2533.04,0.00020273,2]
[368039002,1751002251686,-559.24,0.00020273,2]
[368039003,1751002251695,-1363.56,0.00020273,2]
[368039004,1751002251704,-547.18,0.00020273,2]
[368039005,1751002251714,-1668.16,0.00020273,2]
[368039006,1751002251723,-460.0,0.00020273,2]
[368039007,1751002251732,-1146.19,0.00020273,2]
[368039008,1751002251744,-702.62,0.00020273,2]
[368039009,1751002251755,-926.59,0.00020273,2]
[368039010,1751002251764,-716.79,0.00020273,2]
[368039011,1751002251773,-981.69,0.00020273,2]
[368039012,1751002251783,-524.17,0.00020273,2]
[368039013,1751002251791,-460.0,0.00020273,2]
[368039014,1751002251801,-480.17,0.00020273,2]
[368039015,1751002251810,-7486.99,0.00020273,2]
[368039016,1751002251819,-775.79,0.00020273,2]
[368039017,1751002251828,-3201.74,0.00020273,2]
[368039018,1751002251837,-460.0,0.00020273,2]
[368039019,1751002251846,-517.34,0.00020273,2]
[368039020,1751002251855,-460.0,0.00020273,2]
[368039021,1751002251864,-560.92,0.00020273,2]
[368039022,1751002251874,-460.0,0.00020273,2]
[368039023,1751002251883,-1011.71,0.00020273,2]
[368039024,1751002251893,-846.4,0.00020273,2]
[368039025,1751002251903,-528.27,0.00020273,2]
[368039026,1751002251912,-460.0,0.00020273,2]
[368039027,1751002251921,-460.0,0.00020273,2]
[368039028,1751002251930,-460.0,0.00020273,2]
[368039029,1751002251939,-3240.37,0.00020273,2]
[368039030,1751002251948,-2430.81,0.00020273,2]
[368039031,1751002251960,-1648.11,0.00020273,2]
[368039032,1751002251970,-460.0,0.00020273,2]
[368039033,1751002251979,-457.64,0.00020273,2]
[368039034,1751002251988,-460.0,0.00020273,2]
[368039035,1751002251997,-460.0,0.00020273,2]
[368039036,1751002252006,-460.0,0.00020273,2]
[368039037,1751002252015,-460.0,0.00020273,2]
[368039038,1751002252024,-460.0,0.00020273,2]
[368039039,1751002252034,-278.42,0.00020273,2]
[368039040,1751002252043,-460.0,0.00020273,2]
[368039041,1751002252052,-451.94,0.00020273,2]
[368039042,1751002252061,-460.0,0.00020273,2]
[368039043,1751002252071,-460.0,0.00020273,2]
[368039044,1751002252080,-1853.89,0.00020273,2]
[368039045,1751002252089,-460.0,0.00020273,2]
[368039046,1751002252098,-1791.13,0.00020273,2]
[368039047,1751002252107,-871.79,0.00020273,2]
[368039048,1751002252118,-460.0,0.00020273,2]
[368039049,1751002252127,-917.52,0.00020273,2]
[368039050,1751002252137,-1833.19,0.00020273,2]
[368039051,1751002252147,-707.09,0.00020273,2]
[368039052,1751002252156,-460.0,0.00020273,2]
[368039053,1751002252165,-460.0,0.00020273,2]
[368039054,1751002252175,-500.0,0.00020292,2]
[368039055,1751002252184,-1000.0,0.00020292,2]
[368039056,1751002252194,-619.39198839,0.0002031,2]
[368039057,1751002252203,-798.67117612,0.00020313,2]
[368039058,1751002252213,-8370.50534325,0.00020314,3]
[368039059,1751002252222,-828.22200964,0.00020368,2]
[368039060,1751002252231,-500.0,0.00020393,2]
[368039061,1751002252241,-151.0,0.000204,3]
[368039062,1751002252251,-858.86622399,0.00020423,2]
[368039063,1751002252260,-313.43619628,0.00020478,2]
[368039064,1751002252269,-4798.0,0.00020487,2]
[368039065,1751002252278,-213.75309343,0.00020521,3]
[368039066,1751002252287,-5935.02531493,0.00020521,3]
[368039067,1751002252478,-2435.48002832,0.00020521,3]
[368039068,1751002252487,-12562.41216491,0.00020521,3]
[368039069,1751002252497,-847.04181546,0.00020521,3]
[368039070,1751002252506,-160.0,0.00020521,3]
[368039071,1751002252517,-370.42,0.00020538,3]
[368039072,1751002252526,-460.0,0.00020547,2]
[368039073,1751002252536,-269.51699867,0.00020547,2]
[368039074,1751002252545,-460.0,0.00020547,2]
[368039075,1751002252555,-460.0,0.00020547,2]
[368039076,1751002252565,-460.0,0.00020547,2]
[368039077,1751002252575,-460.0,0.00020547,2]
[368039078,1751002252584,-863.04,0.00020547,2]
[368039079,1751002252593,-460.0,0.00020547,2]
[368039080,1751002252603,-460.0,0.00020547,2]
[368039081,1751002252612,-1007.46,0.00020547,2]
[368039082,1751002252622,-460.0,0.00020547,2]
[368039083,1751002252631,-404.67,0.00020547,2]
[368039084,1751002252641,-460.0,0.00020547,2]
[368039085,1751002252651,-460.0,0.00020547,2]
[368039086,1751002252660,-460.0,0.00020547,2]
[368039087,1751002252670,-460.0,0.00020547,2]
[368039088,1751002252679,-629.65,0.00020547,2]
[368039089,1751002252688,-460.0,0.00020547,2]
[368039090,1751002252699,-460.0,0.00020547,2]
[368039091,1751002252708,-193.79,0.00020547,2]
[368039092,1751002252718,-460.0,0.00020547,2]
[368039093,1751002252727,-156.70459244,0.00020547,2]
[368039094,1751002252750,-151.0,0.00020038,2]
[368039095,1751002252760,-303.29540756,0.00020547,2]
[368039096,1751002252770,-460.0,0.00020547,2]
[368039097,1751002252779,-460.0,0.00020547,2]
[368039098,1751002252788,-460.0,0.00020547,2]
[368039099,1751002252798,-460.0,0.00020547,2]
[368039100,1751002252807,-460.0,0.00020547,2]
[368039101,1751002252817,-460.0,0.00020547,2]
[368039102,1751002252826,-460.0,0.00020547,2]
[368039103,1751002252835,-460.0,0.00020547,2]
[368039104,1751002252844,-701.78,0.00020547,2]
[368039105,1751002252854,-460.0,0.00020547,2]
[368039106,1751002252863,-460.0,0.00020547,2]
[368039107,1751002252873,-460.0,0.00020547,2]
[368039108,1751002252882,-460.0,0.00020547,2]
[368039109,1751002252891,-1087.18,0.00020547,2]
[368039110,1751002252901,-460.0,0.00020547,2]
[368039111,1751002252911,-460.0,0.00020547,2]
[368039112,1751002252920,-519.89353784,0.00020547,2]
[368039113,1751002252930,-460.0,0.00020547,2]
[368039114,1751002252939,-463.75,0.00020547,2]
[368039115,1751002252949,-1089.59,0.00020547,2]
[368039116,1751002252966,-2802.28,0.00020547,2]
[368039117,1751002252975,-460.0,0.00020547,2]
[368039118,1751002252985,-151.0,0.00020547,2]
[368039119,1751002252994,-460.0,0.00020547,2]
[368039120,1751002253003,-544.83,0.00020547,2]
[368039121,1751002253117,-1912.87,0.00020547,2]
[368039122,1751002253128,-460.0,0.00020547,2]
[368039123,1751002253138,-649.93,0.00020547,2]
[368039124,1751002253148,-475.68,0.00020547,2]
[368039125,1751002253158,-460.0,0.00020547,2]
[368039126,1751002253167,-460.0,0.00020547,2]